bitfinex-derivatives/quotes_BTCF0:USTF0_20250716
["timestamp","ask_amount","ask_price","bid_price","bid_amount"]
[1752685474027,1.18286164,119330.0,119320.0,0.05472]
[1752685474727,0.68502524,119330.0,119320.0,0.07344876]
[1752685474928,1.18286164,119330.0,119320.0,0.07344876]
[1752685476430,1.18286164,119330.0,119320.0,0.01992876]
[1752685477929,1.18286164,119330.0,119320.0,0.11367341]
[1752685478525,1.35046964,119330.0,119320.0,0.06483341]
[1752685478834,1.35046964,119330.0,119320.0,0.0311346]
[1752685479319,0.1675416,119320.0,119310.0,0.04490465]
[1752685479519,0.1675556,119310.0,119300.0,0.04490465]
[1752685479726,0.1675697,119300.0,119290.0,0.05983889]
[1752685479927,0.1675697,119300.0,119290.0,1.55983889]
[1752685479928,1.81447476,119300.0,119290.0,1.55983889]
[1752685480129,0.81663836,119300.0,119290.0,1.55983889]
[1752685480428,1.31663836,119300.0,119290.0,1.78950849]
[1752685481033,1.31663836,119300.0,119290.0,1.79050849]
[1752685481829,0.51690866,119300.0,119290.0,1.77555407]
[1752685482027,0.65306866,119300.0,119290.0,2.228506]
[1752685482330,0.63616,119300.0,119290.0,2.228506]
[1752685482733,0.63616,119300.0,119290.0,1.7306696]
[1752685482934,0.8037297,119300.0,119290.0,1.7306696]
[1752685483232,0.8037297,119300.0,119290.0,1.77551884]
[1752685483428,0.8037297,119300.0,119290.0,1.77551894]
[1752685487623,1.3015661,119300.0,119290.0,1.77551894]
[1752685488233,0.8037297,119300.0,119290.0,1.77551894]
[1752685491937,1.22875048,119300.0,119290.0,1.77551894]
[1752685492638,1.22875048,119300.0,119290.0,1.60793514]
[1752685493139,1.72875048,119300.0,119290.0,1.59936924]
[1752685493736,1.72875048,119300.0,119290.0,1.76695304]
[1752685494236,1.72875048,119300.0,119290.0,1.59936924]
[1752685494443,1.72875048,119300.0,119290.0,1.76695304]
[1752685494941,1.72875048,119300.0,119290.0,1.59936924]
[1752685496533,1.13616,119300.0,119290.0,1.76695254]
[1752685496737,1.13616,119300.0,119290.0,2.14712408]
[1752685496738,1.3037293,119300.0,119290.0,2.14712408]
[1752685496939,0.8037293,119300.0,119290.0,2.14712408]
[1752685497131,1.3037293,119300.0,119290.0,2.20696297]
[1752685497540,1.3037293,119300.0,119290.0,2.21530203]
[1752685497940,1.3037293,119300.0,119290.0,1.79028125]
[1752685498137,1.3037293,119300.0,119290.0,2.21530203]
[1752685498333,1.3037293,119300.0,119290.0,1.79028125]
[1752685498635,0.5,119300.0,119290.0,2.21530203]
[1752685498837,0.51874244,119320.0,119310.0,0.02905]
[1752685499041,1.32448364,119320.0,119310.0,1.01795358]
[1752685499241,1.32448364,119320.0,119310.0,0.5929328]
[1752685499541,1.32448364,119320.0,119310.0,0.85039838]
[1752685499938,1.32448364,119320.0,119310.0,0.4253776]
[1752685500939,1.32448364,119320.0,119310.0,0.5929327]
[1752685501742,1.32448364,119320.0,119310.0,1.01795348]
[1752685502545,1.32448364,119320.0,119310.0,1.03294477]
[1752685502747,1.32448364,119320.0,119310.0,0.73834477]
[1752685503942,1.32448364,119320.0,119310.0,0.80561318]
[1752685505342,1.74954442,119320.0,119310.0,0.08593]
[1752685505839,2.1745652,119320.0,119310.0,0.04489448]
[1752685506042,1.74954442,119320.0,119310.0,0.04489448]
[1752685506548,1.74658442,119320.0,119310.0,0.04489448]
[1752685507453,1.74650442,119320.0,119310.0,0.04489448]
[1752685508252,1.32148364,119320.0,119310.0,0.04489448]
[1752685508453,1.74582442,119320.0,119310.0,0.04489448]
[1752685508753,1.74582442,119320.0,119310.0,0.09195448]
[1752685509149,1.74546442,119320.0,119310.0,0.09659448]
[1752685511062,1.32008364,119320.0,119310.0,0.11539448]
[1752685511264,1.74510442,119320.0,119310.0,0.08593]
[1752685512552,1.72636198,119320.0,119310.0,0.08593]
[1752685512757,1.74516251,119320.0,119310.0,0.08593]
[1752685512963,1.74396251,119320.0,119310.0,0.14576889]
[1752685513764,1.31894173,119320.0,119310.0,0.14576889]
[1752685513964,1.74396251,119320.0,119310.0,0.14576889]
[1752685515066,1.72516198,119320.0,119310.0,0.14576889]
[1752685515964,1.72516198,119320.0,119310.0,0.08593]
[1752685516367,1.74409103,119320.0,119310.0,0.08593]
[1752685516759,1.74409103,119320.0,119310.0,0.13087839]
[1752685518567,1.74409103,119320.0,119310.0,0.11544839]
[1752685518568,1.72516198,119320.0,119310.0,0.11544839]
[1752685518768,1.72516198,119320.0,119310.0,0.09664839]
[1752685518769,1.74386441,119320.0,119310.0,0.09664839]
[1752685518969,1.74386441,119320.0,119310.0,0.04494839]
[1752685519461,1.11130441,119320.0,119310.0,0.04494839]
[1752685519767,1.11130441,119320.0,119310.0,0.69416391]
[1752685519768,1.1326,119320.0,119310.0,0.69416391]
[1752685519962,1.3001411,119320.0,119310.0,0.5864477]
[1752685520162,1.3001411,119320.0,119310.0,0.7540028]
[1752685520763,1.1326,119320.0,119310.0,0.7540028]
[1752685520964,1.3001011,119320.0,119310.0,0.7540028]
[1752685521160,1.3001011,119320.0,119310.0,0.32898202]
[1752685521364,1.3001011,119320.0,119310.0,0.7540028]
[1752685521664,0.50004,119320.0,119310.0,0.7540028]
[1752685521871,1.3001011,119320.0,119310.0,0.7540028]
[1752685522258,1.3001011,119320.0,119310.0,0.32898202]
[1752685522459,1.3001011,119320.0,119310.0,0.7540028]
[1752685523160,1.13256,119320.0,119310.0,0.7540028]
[1752685523365,4e-05,119320.0,119310.0,0.93610946]
[1752685523569,0.63252,119320.0,119310.0,1.18610946]
[1752685523769,0.60252,119320.0,119310.0,1.11178791]
[1752685524271,0.60272,119320.0,119310.0,0.86198791]
[1752685524468,0.60272,119320.0,119310.0,0.93683992]
[1752685524663,0.0002,119320.0,119310.0,0.93683992]
[1752685524869,0.63268,119320.0,119310.0,0.93683992]
[1752685525073,0.63268,119320.0,119310.0,1.00949937]
[1752685525374,0.63264,119320.0,119310.0,1.07812209]
[1752685525578,0.8001811,119320.0,119310.0,1.07812209]
[1752685525873,0.63264,119320.0,119310.0,1.13799904]
[1752685526171,0.63264,119320.0,119310.0,1.06315393]
[1752685526372,0.63264,119320.0,119310.0,1.35775393]
[1752685526573,0.8001811,119320.0,119310.0,1.35775393]
[1752685526774,0.63264,119320.0,119310.0,1.35775393]
[1752685527976,0.81910553,119320.0,119310.0,0.6924497]
[1752685528177,0.81910553,119320.0,119310.0,1.19012993]
[1752685529374,0.65156443,119320.0,119310.0,1.19012993]
[1752685529776,0.81910543,119320.0,119310.0,1.19012993]
[1752685529973,0.65156443,119320.0,119310.0,1.19012993]
[1752685530277,0.65152443,119320.0,119310.0,1.19012993]
[1752685534678,0.6326,119320.0,119310.0,0.6924497]
[1752685534875,0.6326,119320.0,119310.0,1.19012993]
[1752685536083,0.6326,119320.0,119310.0,1.20509809]
[1752685536381,0.841501,119320.0,119310.0,0.70741786]
[1752685536581,0.841501,119320.0,119310.0,0.69071983]
[1752685536778,0.846081,119320.0,119310.0,0.39677093]
[1752685536976,1.34376123,119320.0,119310.0,0.47161604]
[1752685537480,1.34376123,119320.0,119310.0,0.56432603]
[1752685538183,0.846081,119320.0,119310.0,0.26972603]
[1752685539383,0.846081,119320.0,119310.0,0.34457114]
[1752685543285,0.846081,119320.0,119310.0,0.32962167]
[1752685543484,0.848081,119320.0,119310.0,0.32962167]
[1752685544285,0.847681,119320.0,119310.0,0.32962167]
[1752685544487,0.215721,119320.0,119310.0,0.26972603]
[1752685544688,0.847681,119320.0,119310.0,0.26972603]
[1752685545189,0.847681,119320.0,119310.0,0.69456859]
[1752685546590,0.215721,119320.0,119310.0,0.69456859]
[1752685546789,0.847681,119320.0,119310.0,0.69456859]
[1752685547291,0.847681,119320.0,119310.0,0.26972603]
[1752685547490,0.847681,119320.0,119310.0,0.69456859]
[1752685547691,0.847561,119320.0,119310.0,0.69456859]
[1752685548289,0.847561,119320.0,119310.0,0.7694137]
[1752685549193,0.847561,119320.0,119310.0,0.69456859]
[1752685550390,0.847561,119320.0,119310.0,0.26972603]
[1752685550588,0.847561,119320.0,119310.0,0.10217093]
[1752685550789,0.847561,119320.0,119310.0,0.26972603]
[1752685551995,0.847401,119320.0,119310.0,0.26972603]
[1752685552185,0.847401,119320.0,119310.0,0.7694137]
[1752685552795,0.00224,119320.0,119310.0,0.7694137]
[1752685553090,0.63392,119320.0,119310.0,0.7694137]
[1752685553395,0.63392,119320.0,119310.0,0.69456859]
[1752685553396,0.63192,119320.0,119310.0,0.69456859]
[1752685553589,0.63292,119320.0,119310.0,0.69456859]
[1752685554302,0.8004611,119320.0,119310.0,0.76208584]
[1752685555296,0.8004611,119320.0,119310.0,0.33724328]
[1752685555485,0.8192811,119320.0,119310.0,0.76208584]
[1752685555691,0.8192811,119320.0,119310.0,0.83710074]
[1752685555998,0.8421911,119320.0,119310.0,0.83710074]
[1752685556496,0.8470811,119320.0,119310.0,0.83710074]
[1752685557299,0.8470811,119320.0,119310.0,0.41225818]
[1752685557597,0.8470811,119320.0,119310.0,0.33724328]
[1752685559593,1.27192366,119320.0,119310.0,0.10217093]
[1752685559798,1.29064695,119320.0,119310.0,0.1771761]
[1752685559999,1.79064695,119320.0,119310.0,0.1771761]
[1752685561294,1.36580439,119320.0,119310.0,0.3447312]
[1752685561597,1.36480439,119320.0,119310.0,0.3447312]
[1752685562004,1.36460439,119320.0,119310.0,0.76957376]
[1752685563398,1.36460439,119320.0,119310.0,0.3447312]
[1752685563699,1.36460439,119320.0,119310.0,0.76957376]
[1752685563897,0.7154011,119320.0,119310.0,0.76957376]
[1752685564096,1.3190411,119320.0,119310.0,0.76957376]
[1752685564401,0.83799673,119320.0,119310.0,0.76957376]
[1752685564801,0.86579673,119320.0,119310.0,0.76957376]
[1752685566402,0.86579673,119320.0,119310.0,0.3447312]
[1752685566800,0.86579673,119320.0,119310.0,0.76957376]
[1752685567398,0.86579673,119320.0,119310.0,0.3447312]
[1752685567599,1.29063929,119320.0,119310.0,0.1771761]
[1752685568308,1.29063929,119320.0,119310.0,0.3447312]
[1752685568613,1.29063929,119320.0,119310.0,0.1771761]
[1752685569207,0.65919929,119320.0,119310.0,0.1771761]
[1752685569409,0.86567673,119320.0,119310.0,0.1771761]
[1752685569607,1.29051929,119320.0,119310.0,0.1771761]
[1752685569811,1.71536185,119320.0,119310.0,0.07520517]
[1752685570108,1.71516185,119320.0,119310.0,0.05520038]
[1752685570310,0.1675551,119310.0,119300.0,1.57500517]
[1752685570500,0.59239766,119310.0,119300.0,1.5]
[1752685570907,1.09239766,119310.0,119300.0,1.5]
[1752685575903,1.09239766,119310.0,119300.0,1.54493664]
[1752685576508,1.09339766,119310.0,119300.0,1.54493664]
[1752685576903,0.6685551,119310.0,119300.0,1.54493664]
[1752685577105,1.2996751,119310.0,119300.0,1.56884664]
[1752685577310,1.2996751,119310.0,119300.0,1.59794664]
[1752685577615,0.6685551,119310.0,119300.0,2.1903584]
[1752685577917,1.2996751,119310.0,119300.0,2.14542176]
[1752685578509,0.7996751,119310.0,119300.0,2.14542176]
[1752685579411,0.7996751,119310.0,119300.0,1.7205792]
[1752685579710,0.7996751,119310.0,119300.0,2.14542176]
[1752685580413,0.7996751,119310.0,119300.0,2.20533323]
[1752685580913,0.7996751,119310.0,119300.0,1.78049067]
[1752685581310,0.001,119310.0,119300.0,2.27839765]
[1752685581513,0.632,119310.0,119300.0,2.21848618]
[1752685581811,0.632,119310.0,119300.0,2.29349135]
[1752685582113,0.632,119310.0,119300.0,2.27838884]
[1752685582311,0.7995551,119310.0,119300.0,2.27838884]
[1752685582903,0.7995951,119310.0,119300.0,2.27838884]
[1752685583414,0.7995951,119310.0,119300.0,2.21848618]
[1752685583608,0.00104,119310.0,119300.0,2.29349135]
[1752685583814,0.63196,119310.0,119300.0,2.29349135]
[1752685584309,0.63096,119310.0,119300.0,2.29549135]
[1752685585209,0.7985152,119310.0,119300.0,2.29549135]
[1752685585416,0.63096,119310.0,119300.0,2.59009135]
[1752685585816,1.17771563,119320.0,119310.0,0.2018552]
[1752685586114,1.97605673,119320.0,119310.0,0.81269961]
[1752685586709,1.34525673,119320.0,119310.0,0.81269961]
[1752685586914,1.97625673,119320.0,119310.0,0.81289961]
[1752685587115,0.64999563,119320.0,119310.0,0.81289961]
[1752685587311,0.01919563,119320.0,119310.0,1.04757218]
[1752685587510,0.64995563,119320.0,119310.0,1.12257735]
[1752685588105,0.631,119320.0,119310.0,1.12257735]
[1752685588613,0.631,119320.0,119310.0,1.11527482]
[1752685588910,0.631,119320.0,119310.0,1.19027999]
[1752685589308,0.7985411,119320.0,119310.0,1.74591482]
[1752685589508,0.7985411,119320.0,119310.0,1.82291999]
[1752685589707,0.7985411,119320.0,119310.0,1.19227999]
[1752685589913,0.7985411,119320.0,119310.0,1.11727482]
[1752685591613,0.7986011,119320.0,119310.0,0.6793381]
[1752685592014,0.7986011,119320.0,119310.0,0.61936784]
[1752685592920,0.7985411,119320.0,119310.0,1.11727482]
[1752685595221,0.7986011,119320.0,119310.0,1.11727482]
[1752685595412,0.7985411,119320.0,119310.0,0.61936784]
[1752685595611,0.7985411,119320.0,119310.0,1.11727482]
[1752685596120,0.7985411,119320.0,119310.0,1.19227999]
[1752685596322,0.1677811,119320.0,119310.0,1.19227999]
[1752685596519,0.7980211,119320.0,119310.0,0.69437301]
[1752685596713,0.7980211,119320.0,119310.0,1.19227999]
[1752685597722,0.7980811,119320.0,119310.0,1.19227999]
[1752685597917,0.7980811,119320.0,119310.0,0.61936784]
[1752685598118,1.29598808,119320.0,119310.0,0.6116415]
[1752685598324,1.79598808,119320.0,119310.0,0.3567763]
[1752685598521,1.2980811,119320.0,119310.0,0.0621763]
[1752685598716,1.79598808,119320.0,119310.0,0.0621763]
[1752685599219,1.79598808,119320.0,119310.0,0.1104463]
[1752685600129,1.79598808,119320.0,119310.0,0.1151863]
[1752685603032,1.72304996,119320.0,119310.0,0.1151863]
[1752685603533,1.72304996,119320.0,119310.0,0.10022306]
[1752685610932,0.50024,119320.0,119310.0,0.72659712]
[1752685611137,0.62988,119320.0,119310.0,0.68158406]
[1752685612337,0.7974211,119320.0,119310.0,0.68158406]
[1752685612537,0.7974211,119320.0,119310.0,0.74870259]
[1752685613140,0.62988,119320.0,119310.0,0.82150087]
[1752685613437,0.62988,119320.0,119310.0,0.38371003]
[1752685613640,0.62988,119320.0,119310.0,0.88147717]
[1752685614328,0.7974211,119320.0,119310.0,0.82150087]
[1752685614637,0.62988,119320.0,119310.0,0.82150087]
[1752685614838,0.7974211,119320.0,119310.0,0.82150087]
[1752685615232,0.62988,119320.0,119310.0,0.82150087]
[1752685615934,0.62988,119320.0,119310.0,0.38369107]
[1752685616134,0.62988,119320.0,119310.0,0.88145821]
[1752685617644,0.62988,119320.0,119310.0,0.38369107]
[1752685617845,0.62988,119320.0,119310.0,0.88145821]
[1752685619040,0.209461,119330.0,119320.0,0.1675412]
[1752685619041,4e-05,119330.0,119320.0,0.1675412]
[1752685619243,0.62916,119330.0,119320.0,0.76703338]
[1752685620148,0.62916,119330.0,119320.0,0.82699072]
[1752685620647,0.62916,119330.0,119320.0,0.76703338]
[1752685622046,0.62916,119330.0,119320.0,0.26926624]
[1752685622241,0.62916,119330.0,119320.0,0.76703338]
[1752685622449,0.18648946,119350.0,119340.0,0.1990131]
[1752685622641,0.81550946,119350.0,119340.0,0.77964493]
[1752685623741,0.64801046,119350.0,119340.0,0.77964493]
[1752685623947,0.64795046,119350.0,119340.0,0.84171877]
[1752685624148,0.81544946,119350.0,119340.0,0.84171877]
[1752685624349,0.81544946,119350.0,119340.0,0.79680173]
[1752685624550,0.81544946,119350.0,119340.0,0.80533368]
[1752685625147,0.64795046,119350.0,119340.0,0.80533368]
[1752685625351,0.64795046,119350.0,119340.0,0.85025072]
[1752685625755,0.64795046,119350.0,119340.0,0.82030603]
[1752685625948,0.64795046,119350.0,119340.0,0.83534633]
[1752685626947,0.64795046,119350.0,119340.0,1.12994633]
[1752685627148,0.64995046,119350.0,119340.0,1.12994633]
[1752685629051,0.631,119350.0,119340.0,0.63217919]
[1752685629253,0.798499,119350.0,119340.0,1.12994633]
[1752685629858,0.631,119350.0,119340.0,1.12994633]
[1752685631056,0.631,119350.0,119340.0,2.62994633]
[1752685631558,0.798499,119350.0,119340.0,2.62994633]
[1752685631759,0.631,119350.0,119340.0,2.62994633]
[1752685635053,0.631,119350.0,119340.0,2.55664871]
[1752685636165,0.631,119350.0,119340.0,2.49669137]
[1752685636363,0.6312,119350.0,119340.0,2.49689137]
[1752685637367,0.6312,119350.0,119340.0,2.07242185]
[1752685637564,0.6312,119350.0,119340.0,2.49689137]
[1752685638862,0.65014632,119350.0,119340.0,2.07242185]
[1752685639056,0.65014632,119350.0,119340.0,2.49689137]
[1752685639563,0.6312,119350.0,119340.0,2.55684871]
[1752685642169,0.7986991,119350.0,119340.0,2.49689137]
[1752685642366,0.6312,119350.0,119340.0,2.49689137]
[1752685642767,0.6312,119350.0,119340.0,2.55681482]
[1752685644469,0.6312,119350.0,119340.0,2.49689137]
[1752685646174,0.6312,119350.0,119340.0,2.57179518]
[1752685649273,0.7986991,119350.0,119340.0,2.57179518]
[1752685649473,0.6312,119350.0,119340.0,2.57179518]
[1752685651768,0.7986991,119350.0,119340.0,2.57179518]
[1752685652072,0.7986991,119350.0,119340.0,2.14732566]
[1752685652378,0.7986991,119350.0,119340.0,2.57179518]
[1752685654483,0.7986991,119350.0,119340.0,2.49689137]
[1752685654879,0.7986991,119350.0,119340.0,2.07242185]
[1752685655077,0.61329219,119350.0,119340.0,1.96142334]
[1752685655277,1.74013219,119350.0,119340.0,0.37202622]
[1752685655770,1.74013219,119350.0,119340.0,0.35486942]
[1752685655970,1.74013219,119350.0,119340.0,0.54646252]
[1752685656280,1.74013219,119350.0,119340.0,0.57438252]
[1752685657283,1.31566267,119350.0,119340.0,0.57438252]
[1752685657681,1.31566267,119350.0,119340.0,0.40686942]
[1752685657882,1.31566267,119350.0,119340.0,0.415395]
[1752685658081,1.74013219,119350.0,119340.0,0.40686942]
[1752685658281,1.74013219,119350.0,119340.0,0.40206942]
[1752685659081,1.74013219,119350.0,119340.0,0.56958252]
[1752685659483,1.74013219,119350.0,119340.0,0.27498252]
[1752685659678,1.74013219,119350.0,119340.0,0.10746942]
[1752685660078,1.74013219,119350.0,119340.0,0.06026942]
[1752685660778,1.31566267,119350.0,119340.0,0.22778252]
[1752685660979,1.74013219,119350.0,119340.0,0.27498252]
[1752685661484,1.74013219,119350.0,119340.0,0.27978252]
[1752685661782,1.74013219,119350.0,119340.0,0.11226942]
[1752685663382,1.74013219,119350.0,119340.0,0.10746942]
[1752685663782,1.74013219,119350.0,119340.0,0.11224942]
[1752685664783,1.74013219,119350.0,119340.0,0.05218]
[1752685665178,1.74013219,119350.0,119340.0,0.0002]
[1752685665773,1.74013219,119350.0,119340.0,0.04522446]
[1752685665975,1.74013219,119350.0,119340.0,0.05273094]
[1752685669189,1.74013219,119350.0,119340.0,0.19022636]
[1752685669385,1.74013219,119350.0,119340.0,0.23777636]
[1752685669890,1.74013219,119350.0,119340.0,0.07026326]
[1752685670281,0.68882267,119350.0,119340.0,0.66702588]
[1752685670485,1.31486267,119350.0,119340.0,0.70047588]
[1752685671086,1.31482267,119350.0,119340.0,0.70047588]
[1752685671286,1.31482267,119350.0,119340.0,0.73049356]
[1752685671589,1.31482267,119350.0,119340.0,0.70047588]
[1752685672590,1.31482267,119350.0,119340.0,0.53296278]
[1752685672889,1.31482267,119350.0,119340.0,0.56298046]
[1752685673085,1.31482267,119350.0,119340.0,0.73049356]
[1752685673389,1.31482267,119350.0,119340.0,0.56298046]
[1752685673888,1.31482267,119350.0,119340.0,0.73049356]
[1752685674090,1.31482267,119350.0,119340.0,0.13851094]
[1752685675994,1.31482267,119350.0,119340.0,0.16102214]
[1752685676793,1.31482267,119350.0,119340.0,0.32853524]
[1752685677294,1.31482267,119350.0,119340.0,0.75300476]
[1752685677597,1.31482267,119350.0,119340.0,0.16102214]
[1752685677794,1.31482267,119350.0,119340.0,0.58549166]
[1752685678702,1.31482267,119350.0,119340.0,0.75300476]
[1752685679202,1.31482267,119350.0,119340.0,0.58549166]
[1752685679601,1.31482267,119350.0,119340.0,0.75300476]
[1752685680100,0.68882267,119350.0,119340.0,0.34518354]
[1752685680297,0.50224,119350.0,119340.0,0.73963538]
[1752685680496,0.62756,119350.0,119340.0,1.04928034]
[1752685682798,0.7949391,119350.0,119340.0,1.04928034]
[1752685683003,0.62744,119350.0,119340.0,1.04928034]
[1752685683403,0.00224,119350.0,119340.0,1.04928034]
[1752685684206,0.1697391,119350.0,119340.0,0.62481082]
[1752685684404,0.1697391,119350.0,119340.0,1.04928034]
[1752685684807,0.00224,119350.0,119340.0,1.04928034]
[1752685685801,0.1677391,119350.0,119340.0,1.05128034]
[1752685686006,0.00024,119350.0,119340.0,1.05128034]
[1752685686208,0.00024,119350.0,119340.0,1.15879492]
[1752685686707,0.7924166,119360.0,119350.0,0.67774862]
[1752685687006,0.62492,119360.0,119350.0,0.73783764]
[1752685687207,0.62492,119360.0,119350.0,0.67774862]
[1752685687405,0.62492,119360.0,119350.0,0.75281321]
[1752685688501,4e-05,119360.0,119350.0,0.75281321]
[1752685688701,0.167525,119360.0,119350.0,1.17728273]
[1752685688901,0.167525,119360.0,119350.0,0.75281321]
[1752685689407,0.167525,119360.0,119350.0,0.67774862]
[1752685689602,0.167525,119360.0,119350.0,0.73777122]
[1752685689807,0.167525,119360.0,119350.0,0.3133017]
[1752685690005,0.167525,119360.0,119350.0,0.73777122]
[1752685692005,0.167525,119360.0,119350.0,1.03237122]
[1752685693102,4e-05,119360.0,119350.0,0.6079017]
[1752685693311,4e-05,119360.0,119350.0,1.03237122]
[1752685693810,0.167525,119360.0,119350.0,1.03237122]
[1752685694207,4e-05,119360.0,119350.0,1.03237122]
[1752685694402,0.167525,119360.0,119350.0,1.03237122]
[1752685695713,4e-05,119360.0,119350.0,1.03237122]
[1752685696014,0.167525,119360.0,119350.0,1.03237122]
[1752685696215,4e-05,119360.0,119350.0,1.03237122]
[1752685696512,0.167525,119360.0,119350.0,1.03237122]
[1752685696905,4e-05,119360.0,119350.0,1.03237122]
[1752685698610,4e-05,119360.0,119350.0,2.08080074]
[1752685699709,4e-05,119360.0,119350.0,1.2318617]
[1752685699913,4e-05,119360.0,119350.0,1.65633122]
[1752685700414,4e-05,119360.0,119350.0,1.67137321]
[1752685701216,4e-05,119360.0,119350.0,1.59630862]
[1752685702810,4e-05,119360.0,119350.0,1.67137321]
[1752685703317,4e-05,119360.0,119350.0,1.59630862]
[1752685703516,0.00024,119360.0,119350.0,1.67157321]
[1752685705918,0.00024,119360.0,119350.0,1.73153357]
[1752685706211,0.00024,119360.0,119350.0,1.20007698]
[1752685706418,0.216845,119380.0,119370.0,0.27033824]
[1752685706621,0.1749808,119380.0,119370.0,1.03438181]
[1752685706821,0.1749808,119380.0,119370.0,1.01939099]
[1752685707013,0.1749808,119380.0,119370.0,1.03438181]
[1752685707208,0.19436974,119380.0,119370.0,0.39746724]
[1752685707415,1.11931926,119380.0,119370.0,0.59491166]
[1752685707609,1.11931926,119380.0,119370.0,0.42744066]
[1752685707816,1.11931926,119380.0,119370.0,0.61740076]
[1752685708420,0.69484974,119380.0,119370.0,0.61740076]
[1752685709520,0.69484974,119380.0,119370.0,0.59491166]
[1752685709709,0.69484974,119380.0,119370.0,0.30031166]
[1752685709913,0.69584974,119380.0,119370.0,0.30031166]
[1752685713120,0.69584974,119380.0,119370.0,0.34528571]
[1752685713321,0.69584974,119380.0,119370.0,0.73978181]
[1752685713514,0.69584974,119380.0,119370.0,0.31531229]
[1752685714219,1.12031926,119380.0,119370.0,0.14784129]
[1752685714422,1.12031926,119380.0,119370.0,0.29788229]
[1752685714920,1.12031926,119380.0,119370.0,0.31531229]
[1752685715722,1.12031926,119380.0,119370.0,0.34534459]
[1752685716125,1.12031926,119380.0,119370.0,0.3302986]
[1752685716622,0.69584974,119380.0,119370.0,0.3302986]
[1752685716824,1.12031926,119380.0,119370.0,0.3302986]
[1752685718024,1.12031926,119380.0,119370.0,0.1628276]
[1752685720223,0.69584974,119380.0,119370.0,0.1628276]
[1752685720424,1.12031926,119380.0,119370.0,0.0767676]
[1752685720625,1.28785526,119380.0,119370.0,0.0767676]
[1752685721724,1.12031926,119380.0,119370.0,0.0767676]
[1752685725031,0.69584974,119380.0,119370.0,0.0767676]
[1752685725220,1.12051926,119380.0,119370.0,0.0769676]
[1752685726232,0.69604974,119380.0,119370.0,0.0769676]
[1752685726421,1.12051926,119380.0,119370.0,0.0769676]
[1752685729223,1.12051926,119380.0,119370.0,1.5769676]
[1752685729425,1.12051926,119380.0,119370.0,1.6252776]
[1752685729627,1.12051926,119380.0,119370.0,1.60847036]
[1752685731030,1.12051926,119380.0,119370.0,1.5002]
[1752685731226,1.28829524,119380.0,119370.0,0.0002]
[1752685731431,0.168771,119370.0,119360.0,0.12489929]
[1752685731626,0.790251,119370.0,119360.0,0.10827036]
[1752685731830,0.790251,119370.0,119360.0,1.60827036]
[1752685732331,1.21472052,119370.0,119360.0,1.61287036]
[1752685734224,0.790251,119370.0,119360.0,1.61287036]
[1752685734422,0.168291,119370.0,119360.0,2.20482498]
[1752685734631,0.789611,119370.0,119360.0,2.20482498]
[1752685735233,0.789611,119370.0,119360.0,1.78035546]
[1752685735438,0.168291,119370.0,119360.0,1.78035546]
[1752685735635,0.790491,119370.0,119360.0,1.78035546]
[1752685735935,0.790451,119370.0,119360.0,2.20482498]
[1752685736136,0.790451,119370.0,119360.0,2.14486462]
[1752685737635,0.790451,119370.0,119360.0,1.55291]
[1752685737837,0.790451,119370.0,119360.0,2.18995208]
[1752685738236,0.169291,119370.0,119360.0,1.76548256]
[1752685738436,0.790291,119370.0,119360.0,2.18995208]
[1752685740038,0.790171,119370.0,119360.0,2.18995208]
[1752685741033,0.7901711,119370.0,119360.0,2.18995208]
[1752685741239,0.7897311,119370.0,119360.0,1.7203951]
[1752685741441,0.7897311,119370.0,119360.0,2.14486462]
[1752685742543,0.7897311,119370.0,119360.0,1.7203951]
[1752685742737,0.7897311,119370.0,119360.0,2.14486462]
[1752685744442,0.7897311,119370.0,119360.0,2.20482498]
[1752685746241,0.001,119370.0,119360.0,2.2220066]
[1752685746443,0.62144,119370.0,119360.0,2.2220066]
[1752685749343,0.7889111,119370.0,119360.0,2.2220066]
[1752685749548,0.7891111,119370.0,119360.0,2.2222066]
[1752685750849,0.62164,119370.0,119360.0,2.2222066]
[1752685751051,0.7891112,119370.0,119360.0,2.2222066]
[1752685751251,0.62164,119370.0,119360.0,2.2222066]
[1752685751550,0.62164,119370.0,119360.0,2.16224624]
[1752685752653,0.62164,119370.0,119360.0,2.23731083]
[1752685754253,0.7891112,119370.0,119360.0,2.23731083]
[1752685754652,0.7891112,119370.0,119360.0,1.81284131]
[1752685754851,0.7891112,119370.0,119360.0,2.23731083]
[1752685755448,0.7891112,119370.0,119360.0,2.16224624]
[1752685755642,0.7891512,119370.0,119360.0,2.16224624]
[1752685755848,0.62168,119370.0,119360.0,2.16224624]
[1752685756147,0.62168,119370.0,119360.0,2.22232988]
[1752685757653,0.7891512,119370.0,119360.0,2.22232988]
[1752685757953,0.7891512,119370.0,119360.0,1.79786036]
[1752685758156,0.62168,119370.0,119360.0,2.22232988]
[1752685760053,0.62168,119370.0,119360.0,1.79786036]
[1752685760250,0.62168,119370.0,119360.0,2.22232988]
[1752685760654,0.62168,119370.0,119360.0,1.79786036]
[1752685760854,0.7891512,119370.0,119360.0,2.22232988]
[1752685761056,0.62168,119370.0,119360.0,2.43450516]
[1752685761752,0.7891512,119370.0,119360.0,2.43450516]
[1752685761955,0.62168,119370.0,119360.0,2.43450516]
[1752685763556,0.62048,119370.0,119360.0,2.43450516]
[1752685764763,0.7879512,119370.0,119360.0,2.43450516]
[1752685765561,0.7879512,119370.0,119360.0,1.79786036]
[1752685765756,0.62048,119370.0,119360.0,2.43450516]
[1752685766155,0.62048,119370.0,119360.0,2.37442152]
[1752685766357,0.62048,119370.0,119360.0,2.44948611]
[1752685767257,0.62048,119370.0,119360.0,2.37442152]
[1752685769963,0.62048,119370.0,119360.0,1.81284131]
[1752685770164,0.62048,119370.0,119360.0,2.44948611]
[1752685772569,0.7879512,119370.0,119360.0,2.44948611]
[1752685773063,0.62048,119370.0,119360.0,2.44948611]
[1752685773768,0.62048,119370.0,119360.0,2.37442152]
[1752685774264,0.62048,119370.0,119360.0,2.44948611]
[1752685774764,0.7879512,119370.0,119360.0,2.44948611]
[1752685775365,0.7879512,119370.0,119360.0,1.81284131]
[1752685775663,0.7879512,119370.0,119360.0,2.44948611]
[1752685777162,1.925896,119370.0,119360.0,0.11330948]
[1752685777355,0.18755461,119360.0,119350.0,0.05288]
[1752685777557,0.82419941,119360.0,119350.0,0.05288]
[1752685777758,0.82419941,119360.0,119350.0,0.11309375]
[1752685778365,0.82419941,119360.0,119350.0,0.05288]
[1752685778762,0.80507461,119360.0,119350.0,0.2551392]
[1752685778968,0.80507461,119360.0,119350.0,0.31535295]
[1752685779162,1.12339701,119360.0,119350.0,0.63367535]
[1752685779366,0.80555461,119360.0,119350.0,0.63367535]
[1752685779860,1.12387701,119360.0,119350.0,0.31535295]
[1752685780067,1.12387701,119360.0,119350.0,0.63367535]
[1752685780266,1.12387701,119360.0,119350.0,0.5734616]